bitfinex-derivatives/quotes_ETHF0:USTF0_20240925
["timestamp","ask_amount","ask_price","bid_price","bid_amount"]
[1727256779148,3.58859,2626.0,2625.9,1.1]
[1727256779842,3.58859,2626.0,2625.8,1.51891]
[1727256780242,3.58859,2626.0,2625.8,1.1381]
[1727256781857,0.3808,2625.9,2625.8,1.1381]
[1727256782067,3.2078,2626.0,2625.8,1.1381]
[1727256782368,0.3808,2625.9,2625.8,1.1381]
[1727256783156,0.3808,2625.9,2625.8,2.13699211]
[1727256784360,0.3808,2625.9,2625.8,1.1381]
[1727256786262,1.3328,2625.9,2625.8,1.1381]
[1727256792873,1.706,2625.9,2625.8,1.1381]
[1727256795869,1.3328,2625.9,2625.8,1.1381]
[1727256796769,0.3808,2625.9,2625.8,1.1381]
[1727256796974,3.2078,2626.0,2625.8,2.2381]
[1727256797170,3.2078,2626.0,2625.9,1.4808]
[1727256799471,3.58858,2626.0,2625.9,1.4808]
[1727256800669,0.3808,2625.9,2625.8,2.13699211]
[1727256800875,0.3808,2625.9,2625.8,1.1381]
[1727256804678,0.3808,2625.9,2625.8,1.51891]
[1727256806275,3.58859,2626.0,2625.8,1.51891]
[1727256806782,0.3808,2625.9,2625.8,1.51891]
[1727256807081,0.3808,2625.9,2625.8,1.1381]
[1727256807280,0.3808,2625.9,2625.8,1.51891]
[1727256807477,0.3808,2625.9,2625.8,1.1381]
[1727256807880,6.2408,2625.9,2625.8,1.1381]
[1727256808085,6.2408,2625.9,2625.8,0.3916]
[1727256808277,0.38083,2625.7,2625.6,0.3727]
[1727256808478,3.58863,2625.7,2625.6,0.3727]
[1727256810782,0.38083,2625.8,2625.6,1.85354]
[1727256810980,0.38082,2625.8,2625.6,1.85354]
[1727256811180,0.95201,2625.9,2625.7,0.38083]
[1727256811181,0.38081,2625.9,2625.7,0.38083]
[1727256811376,0.3808,2625.9,2625.8,1.1]
[1727256811972,3.58859,2626.0,2625.8,1.48081]
[1727256812176,3.58859,2626.0,2625.9,0.7731]
[1727256812379,3.58859,2626.0,2625.9,1.1742]
[1727256813884,3.58859,2626.0,2625.9,1.555]
[1727256814086,3.2078,2626.0,2625.9,1.1742]
[1727256814688,3.58858,2626.0,2625.9,1.1742]
[1727256816975,0.38078,2626.0,2625.9,1.1742]
[1727256817981,0.38078,2626.0,2625.9,1.555]
[1727256820592,0.38078,2626.0,2625.9,2.55389211]
[1727256821692,0.38078,2626.0,2625.9,2.17309211]
[1727256822089,0.38078,2626.0,2625.9,3.5716145]
[1727256822581,0.38078,2626.0,2625.9,2.57312814]
[1727256822779,0.38078,2626.0,2625.9,2.95392814]
[1727256823284,0.38078,2626.0,2625.9,3.95256981]
[1727256823484,0.38078,2626.0,2625.9,4.45187282]
[1727256826789,0.38078,2626.0,2625.9,4.07107282]
[1727256827386,0.38078,2626.0,2625.9,4.07178806]
[1727256830094,0.38078,2626.0,2625.9,4.45258806]
[1727256832396,0.38078,2626.0,2625.9,4.45254648]
[1727256834290,0.38078,2626.0,2625.9,4.07174648]
[1727256834687,0.38078,2626.0,2625.9,3.57297201]
[1727256834994,6.09272,2626.0,2625.8,2.49711489]
[1727256835294,4.6763,2626.1,2625.7,0.99917021]
[1727256835295,1.33285,2625.8,2625.7,0.99917021]
[1727256835497,1.33285,2625.8,2625.6,1.89424468]
[1727256835498,1.3329,2625.7,2625.6,0.99917021]
[1727256835686,0.95211,2625.6,2625.2,0.99917021]
[1727256835888,5.2773,2625.7,2625.1,3.25447021]
[1727256835889,0.38088,2625.3,2625.1,3.25447021]
[1727256836091,0.38088,2625.3,2625.1,3.63538021]
[1727256836299,0.38088,2625.4,2625.1,3.63538021]
[1727256836494,0.38088,2625.4,2625.1,2.63621]
[1727256837183,0.38089,2625.3,2625.1,2.63621]
[1727256837384,0.38088,2625.4,2625.1,2.63621]
[1727256838196,0.38087,2625.4,2625.2,0.38089]
[1727256838495,0.38087,2625.4,2625.1,2.63621]
[1727256840391,0.38087,2625.4,2625.2,0.3809]
[1727256840591,0.38088,2625.4,2625.2,1.48089]
[1727256841594,3.2078,2625.5,2625.2,1.48089]
[1727256841595,0.38088,2625.3,2625.2,1.48089]
[1727256842599,0.38088,2625.3,2625.2,1.1]
[1727256842796,4.15996,2625.5,2625.1,1.1553]
[1727256842797,0.3809,2625.2,2625.1,1.1553]
[1727256843000,0.3809,2625.2,2625.1,1.53621]
[1727256843492,0.3944,2625.4,2625.1,1.53621]
[1727256843806,0.38087,2625.4,2625.3,0.38088]
[1727256843994,0.38087,2625.4,2625.3,2.48005021]
[1727256844193,0.38087,2625.4,2625.3,1.48088]
[1727256844801,3.2078,2625.5,2625.2,2.48007021]
[1727256844802,0.38088,2625.3,2625.2,2.48007021]
[1727256844993,0.38088,2625.3,2625.2,0.99917021]
[1727256845198,0.3809,2625.2,2625.1,2.15447021]
[1727256845398,0.3809,2625.2,2625.1,3.55235888]
[1727256845605,0.3809,2625.2,2625.1,2.15447021]
[1727256846807,0.3809,2625.2,2625.1,2.53538021]
[1727256847302,0.3809,2625.2,2625.1,2.15447021]
[1727256848401,0.3809,2625.2,2625.1,2.53538021]
[1727256849193,0.3809,2625.2,2625.1,2.15447021]
[1727256850401,0.3809,2625.2,2625.1,2.53538021]
[1727256850608,0.3809,2625.2,2625.1,1.53621]
[1727256855010,0.3809,2625.2,2625.1,1.1553]
[1727256855396,5.64096,2625.2,2625.1,0.3963]
[1727256855808,4.6887,2625.2,2625.1,0.3963]
[1727256856197,3.5887,2625.2,2625.1,0.3963]
[1727256856604,4.54096,2625.2,2625.1,0.3963]
[1727256859220,1.33316,2625.2,2625.1,0.3963]
[1727256859409,4.54096,2625.2,2625.1,0.3963]
[1727256859615,4.54096,2625.2,2624.7,1.39487021]
[1727256859616,0.38096,2624.8,2624.7,1.39487021]
[1727256859809,0.38096,2624.8,2624.7,1.142]
[1727256860708,2.05226,2625.2,2624.7,6.0516]
[1727256860709,3.2078,2625.2,2624.7,6.0516]
[1727256860903,3.2078,2625.2,2624.8,1.1]
[1727256861117,0.38094,2624.9,2624.8,1.1]
[1727256861613,0.38094,2625.0,2624.8,1.1]
[1727256862207,0.38094,2625.0,2624.8,1.48096]
[1727256862514,0.38092,2625.1,2624.9,0.38094]
[1727256862720,0.38093,2625.0,2624.8,1.48095]
[1727256863019,4.16007,2625.2,2624.8,1.1]
[1727256863208,0.38094,2625.0,2624.8,1.48096]
[1727256863614,0.38094,2625.0,2624.8,1.48094]
[1727256864315,0.3863,2625.1,2624.8,1.1]
[1727256864508,0.38094,2625.0,2624.8,1.48095]
[1727256864903,0.38094,2625.0,2624.9,0.38094]
[1727256865921,0.38094,2625.0,2624.8,1.48094]
[1727256866118,0.38094,2625.0,2624.7,1.142]
[1727256866119,4.16006,2625.2,2624.9,1.48093]
[1727256866317,0.38093,2625.1,2625.0,0.385]
[1727256868216,3.5887,2625.2,2625.0,0.385]
[1727256868416,0.38087,2625.4,2625.2,0.3809]
[1727256868716,0.38087,2625.4,2625.3,0.38088]
[1727256869015,3.2078,2625.5,2625.4,0.38087]
[1727256869514,3.2078,2625.5,2625.4,0.75417]
[1727256870620,3.58866,2625.5,2625.4,0.75417]
[1727256872428,3.2078,2625.5,2625.4,0.75417]
[1727256872814,3.58866,2625.5,2625.4,0.75417]
[1727256873723,0.38084,2625.7,2625.6,0.38084]
[1727256873918,0.38084,2625.7,2625.6,1.48084]
[1727256874921,0.38084,2625.7,2625.6,1.1]
[1727256875116,3.58864,2625.7,2625.6,1.1]
[1727256876409,3.58864,2625.7,2625.6,1.48084]
[1727256876814,3.58864,2625.7,2625.6,1.1]
[1727256877420,3.58864,2625.7,2625.6,1.48084]
[1727256879523,0.38084,2625.7,2625.6,1.48084]
[1727256879930,3.58864,2625.7,2625.6,1.48084]
[1727256880526,3.58864,2625.7,2625.6,2.48001021]
[1727256880920,3.58864,2625.7,2625.5,1.4763]
[1727256881622,3.58864,2625.7,2625.6,0.77904]
[1727256882721,0.38081,2625.9,2625.8,0.38081]
[1727256882923,3.2078,2626.2,2625.8,1.1]
[1727256883134,0.38078,2626.1,2626.0,1.1]
[1727256883415,0.38078,2626.1,2626.0,1.4932]
[1727256883828,0.38078,2626.1,2626.0,0.3932]
[1727256884622,3.2078,2626.2,2626.0,0.3932]
[1727256884926,0.38077,2626.1,2626.0,1.87398]
[1727256886033,0.38077,2626.1,2626.0,0.77398]
[1727256888420,3.2078,2626.2,2626.1,0.38077]
[1727256888619,3.2078,2626.8,2626.1,7.0158]
[1727256888827,3.2078,2626.8,2626.6,1.1]
[1727256888828,0.74748,2626.8,2626.6,1.1]
[1727256889032,0.74748,2626.8,2626.7,0.4038]
[1727256891129,0.3668,2626.8,2626.7,0.78448]
[1727256891323,3.2078,2627.1,2626.8,0.38066]
[1727256891522,3.2078,2627.1,2626.8,1.86946]
[1727256891725,3.58843,2627.1,2626.8,1.86946]
[1727256891922,0.4023,2627.2,2627.0,1.1]
[1727256892132,3.2078,2627.4,2627.1,0.4007]
[1727256892427,3.2078,2627.4,2627.3,1.48059]
[1727256893030,3.2078,2627.4,2627.3,5.28699]
[1727256894431,3.2078,2627.4,2627.3,6.56699]
[1727256899332,3.2078,2627.4,2627.3,2.76059]
[1727256899533,3.58838,2627.4,2627.3,2.38]
[1727256899933,3.2078,2627.4,2627.3,2.76059]
[1727256900134,3.58838,2627.4,2627.1,0.4007]
[1727256900336,3.2078,2627.4,2627.1,2.7807]
[1727256900528,3.2078,2627.4,2627.2,12.1343747]
[1727256900832,3.2078,2627.4,2627.3,0.38059]
[1727256901030,3.2078,2627.4,2627.3,0.75859]
[1727256901529,3.58838,2627.4,2627.3,0.378]
[1727256901929,3.2078,2627.4,2627.2,12.1343747]
[1727256902132,3.2078,2627.4,2627.1,0.4007]
[1727256902133,0.38061,2627.2,2627.1,0.4007]
[1727256905726,1.33214,2627.2,2627.1,0.4007]
[1727256906035,0.38064,2627.0,2626.9,0.378]
[1727256908230,3.58843,2627.1,2626.9,0.75864]
[1727256908435,0.38064,2627.0,2626.9,0.378]
[1727256909040,3.58843,2627.1,2626.9,0.75865]
[1727256909343,0.38064,2627.0,2626.9,0.75865]
[1727256911842,0.38064,2627.0,2626.9,0.378]
[1727256916446,0.38064,2627.0,2626.9,0.75865]
[1727256916847,3.58843,2627.1,2626.9,0.75865]
[1727256917046,3.2078,2627.1,2627.0,1.1]
[1727256917239,0.111,2627.4,2627.0,1.1]
[1727256917240,3.58838,2627.4,2627.0,1.1]
[1727256917445,3.2078,2627.4,2627.3,0.38059]
[1727256917842,3.2078,2627.4,2627.3,1.55709]
[1727256918350,3.2078,2627.4,2627.3,3.93709]
[1727256922049,0.38053,2627.8,2627.7,0.38054]
[1727256922349,2.894,2628.5,2627.8,0.38051]
[1727256922350,0.38051,2627.9,2627.8,0.38051]
[1727256922547,0.38051,2627.9,2627.8,2.38]
[1727256923052,3.5628,2628.5,2627.8,18.12908228]
[1727256923246,3.2078,2628.2,2627.8,11.02287361]
[1727256923547,3.58827,2628.2,2627.8,11.02286361]
[1727256923747,3.58827,2628.2,2627.9,0.3805]
[1727256924141,3.58827,2628.2,2627.9,0.7691]
[1727256924142,3.2078,2628.2,2627.9,0.7691]
[1727256924342,3.2078,2628.2,2627.9,0.3886]
[1727256924343,0.38048,2628.1,2627.9,0.3886]
[1727256924546,3.2078,2628.2,2627.9,0.3886]
[1727256924738,3.58827,2628.2,2627.9,0.3886]
[1727256925848,0.38044,2628.4,2627.9,0.3886]
[1727256926050,0.38046,2628.3,2628.1,2.38]
[1727256926551,3.2078,2628.2,2628.1,2.38]
[1727256926947,3.2078,2628.2,2628.1,2.76048]
[1727256927551,0.3846,2628.5,2628.1,2.38]
[1727256927746,0.3846,2628.5,2628.4,2.76044]
[1727256928645,0.3846,2628.5,2628.4,2.7817]
[1727256928851,3.2078,2628.9,2628.4,2.7817]
[1727256929058,3.2078,2628.9,2628.4,3.16213]
[1727256929059,0.3804,2628.7,2628.4,3.16213]
[1727256929754,3.2078,2628.9,2628.4,2.7817]
[1727256929951,3.2078,2628.9,2628.4,3.16213]
[1727256930351,1.58275788,2629.1,2628.4,0.4017]
[1727256930352,3.58821,2628.6,2628.4,0.4017]
[1727256930550,3.2078,2628.6,2628.3,0.3878]
[1727256930751,0.38044,2628.4,2628.3,0.3878]
[1727256930951,0.38048,2628.2,2627.9,0.3709]
[1727256931152,0.77978,2628.1,2627.9,0.747]
[1727256931461,0.3993,2628.1,2627.9,8.94834606]
[1727256931663,0.3993,2628.1,2627.9,0.747]
[1727256931950,0.3993,2628.1,2627.9,1.12751]
[1727256932155,0.3993,2628.1,2627.9,0.747]
[1727256932352,0.3993,2628.1,2627.9,1.12751]
[1727256934259,0.3993,2628.1,2627.9,1.1275]
[1727256935751,0.77979,2628.1,2627.9,0.747]
[1727256935956,0.77979,2628.1,2627.9,1.12751]
[1727256936459,0.3993,2628.1,2627.9,1.1275]
[1727256937455,0.3993,2628.1,2627.9,0.747]
[1727256937456,0.77978,2628.1,2627.9,0.747]
[1727256937651,0.3993,2628.1,2627.9,1.12751]
[1727256939663,0.3993,2628.1,2628.0,0.38049]
[1727256939868,0.38047,2628.2,2628.0,2.38]
[1727256940058,3.6021,2628.4,2628.3,0.38045]
[1727256940259,3.6021,2628.4,2628.3,2.76045]
[1727256940863,0.38038,2628.8,2628.3,2.38]
[1727256941054,1.33697,2629.1,2628.7,2.38]
[1727256941468,0.38039,2628.7,2628.5,2.38]
[1727256941663,0.38041,2628.6,2628.4,0.7957]
[1727256941863,0.3804,2628.7,2628.4,1.17613]
[1727256942167,0.7665,2628.7,2628.4,1.17613]
[1727256942668,0.3861,2628.7,2628.4,0.7957]
[1727256943067,0.7665,2628.7,2628.4,1.17613]
[1727256944359,0.7665,2628.7,2628.4,0.7957]
[1727256944554,0.7665,2628.7,2628.4,1.17613]
[1727256945255,0.3861,2628.7,2628.4,1.17613]
[1727256945965,0.3861,2628.7,2628.5,0.38042]
[1727256946163,0.76649,2628.7,2628.4,1.17613]
[1727256946666,0.76649,2628.7,2628.5,0.38042]
[1727256946856,0.3861,2628.7,2628.5,0.38042]
[1727256947869,0.76649,2628.7,2628.5,0.38042]
[1727256948369,0.76649,2628.7,2628.4,1.17613]
[1727256948866,0.3861,2628.7,2628.4,1.17613]
[1727256949171,0.7665,2628.7,2628.5,0.38042]
[1727256949468,0.7665,2628.7,2628.4,1.17612]
[1727256950268,0.7665,2628.7,2628.5,0.38042]
[1727256952567,0.3861,2628.7,2628.6,0.38041]
[1727256952864,0.3861,2628.7,2628.6,0.76031]
[1727256953367,0.76649,2628.7,2628.6,0.3799]
[1727256953763,0.3861,2628.7,2628.6,0.76031]
[1727256954163,0.38039,2628.8,2628.6,0.76031]
[1727256954364,0.38039,2628.7,2628.6,0.3799]
[1727256955261,0.38038,2628.8,2628.7,0.38039]
[1727256955567,0.38038,2628.8,2628.6,0.3799]
[1727256955870,0.38038,2628.8,2628.6,0.7603]
[1727256956961,0.38039,2628.7,2628.6,0.7603]
[1727256958570,0.38039,2628.7,2628.6,1.4799]
[1727256959969,0.38039,2628.7,2628.6,1.86031]
[1727256960869,0.38039,2628.7,2628.6,0.3799]
[1727256961975,0.38039,2628.7,2628.5,1.48042]
[1727256962166,0.38041,2628.6,2628.5,1.1]
[1727256962366,0.38041,2628.6,2628.4,1.17613]
[1727256962563,0.3871,2628.5,2628.4,1.17613]
[1727256962764,0.76752,2628.5,2628.4,0.7957]
[1727256963067,0.76752,2628.5,2627.9,0.3805]
[1727256963068,0.95113,2628.3,2627.9,0.3805]
[1727256963273,0.38049,2628.1,2627.9,1.76805403]
[1727256963471,0.95113,2628.3,2627.9,0.3979]
[1727256963778,0.38048,2628.1,2628.0,0.38049]
[1727256964273,0.95113,2628.3,2628.0,0.38049]
[1727256964970,0.38046,2628.2,2628.0,0.38049]
[1727256965764,0.38048,2628.1,2628.0,0.38049]
[1727256967369,0.38048,2628.1,2628.0,1.37014403]
[1727256968376,0.38048,2628.1,2628.0,0.98965403]
[1727256968770,0.76368,2628.1,2628.0,0.98965403]
[1727256968970,0.76368,2628.1,2628.0,2.38339686]
[1727256969168,0.76368,2628.1,2628.0,0.98965403]
[1727256969360,0.76368,2628.1,2628.0,1.37014403]
[1727256970676,0.76368,2628.1,2628.0,0.98965403]
[1727256971375,0.38049,2628.0,2627.9,0.7784]
[1727256975281,0.3832,2628.1,2627.9,0.7784]
[1727256975478,0.38049,2628.0,2627.9,0.7784]
[1727256976678,0.76369,2628.1,2628.0,0.38049]
[1727256976983,0.38049,2628.0,2627.9,0.7784]
[1727256977175,3.6058,2628.4,2627.9,2.7779]
[1727256977176,0.4036,2628.3,2627.9,2.7779]
[1727256977382,0.4036,2628.3,2628.2,0.38045]
[1727256977383,0.38045,2628.3,2628.2,0.38045]
[1727256977873,0.38045,2628.3,2628.2,1.16675]
[1727256978473,0.38045,2628.4,2628.3,0.38044]
[1727256978674,0.38045,2628.4,2628.3,4.13660668]
[1727256979474,0.38043,2628.5,2628.3,4.13660668]
[1727256979673,0.38042,2628.5,2628.3,4.13660668]
[1727256979874,0.38044,2628.4,2628.3,4.13660668]
[1727256983184,0.38043,2628.5,2628.3,3.75616668]
[1727256983382,3.6114,2628.6,2628.3,3.75616668]
[1727256983580,3.58821,2628.6,2628.4,1.37598668]
[1727256983783,0.38041,2628.6,2628.4,1.37598668]
[1727256984278,0.38041,2628.6,2628.5,1.1]
[1727256985486,0.3804,2628.7,2628.5,1.48041]
[1727256985682,0.3804,2628.7,2628.6,0.7593]
[1727256986775,1.33139,2628.7,2628.6,0.7593]
[1727256986979,1.33139,2628.7,2628.6,0.366]
[1727256987178,0.38042,2628.5,2628.4,1.38886668]
[1727256987381,0.38042,2628.5,2628.4,0.7593]
[1727256987787,0.38042,2628.5,2628.4,1.75486668]
[1727256988489,0.38042,2628.5,2628.4,0.7593]
[1727256989192,0.38044,2628.4,2628.3,1.37616668]
[1727256989383,0.76644,2628.4,2628.3,1.37616668]
[1727256993485,0.76644,2628.4,2628.3,0.3806]
[1727256995389,4.57124,2628.4,2628.3,0.3806]
[1727256995591,5.52234,2628.4,2628.3,0.3806]
[1727256995789,1.71754,2628.4,2628.3,0.3806]
[1727256996489,5.52234,2628.4,2628.3,0.3806]
[1727256997192,1.71754,2628.4,2628.3,0.3806]
[1727257000498,0.76644,2628.4,2628.3,0.3806]
[1727257002602,3.97424,2628.4,2628.3,0.3806]
[1727257003602,3.97424,2628.4,2628.3,1.4806]
[1727257005801,3.97424,2628.4,2628.3,2.47616668]
[1727257007704,3.97424,2628.4,2628.3,2.84036668]
[1727257008797,3.97424,2628.4,2628.3,1.8448]
[1727257014102,3.2078,2628.4,2628.3,1.8448]
[1727257014303,3.2078,2628.4,2628.3,2.22525]
[1727257014511,3.2078,2628.4,2628.3,1.8448]
[1727257014712,3.2078,2628.4,2628.3,2.22525]
[1727257015211,3.2078,2628.4,2628.3,1.8448]
[1727257015800,3.2078,2628.4,2628.3,4.73579828]
[1727257016206,3.2078,2628.4,2628.3,5.11624828]
[1727257016407,3.2078,2628.4,2628.3,4.73579828]
[1727257017010,0.38043,2628.5,2628.3,4.73579828]
[1727257017220,0.38043,2628.5,2628.4,2.75998683]
[1727257020114,3.599,2628.6,2628.4,2.76006833]
[1727257020321,0.38042,2628.5,2628.4,0.3647]
[1727257020525,0.38042,2628.5,2628.4,1.76207215]
[1727257020813,0.38042,2628.5,2628.4,2.76014956]
[1727257021019,3.599,2628.6,2628.4,2.76014956]
[1727257021020,3.97942,2628.6,2628.4,2.76014956]
[1727257021221,3.97942,2628.6,2628.5,0.99807741]
[1727257023017,4.93044,2628.6,2628.5,0.99807741]
[1727257023232,7.78342,2628.6,2628.4,0.99807741]
[1727257023430,7.78342,2628.6,2628.3,1.37867741]
[1727257023431,1.33154,2628.4,2628.3,1.37867741]
[1727257023717,1.33154,2628.4,2628.3,0.3806]
[1727257023918,5.13634,2628.4,2628.3,0.3806]
[1727257025822,8.34414,2628.4,2628.3,0.3806]
[1727257026814,4.53934,2628.4,2628.3,0.3806]
[1727257027816,8.56740126,2628.4,2628.3,0.3806]
[1727257028124,4.76260126,2628.4,2628.3,0.3806]
[1727257028527,8.56740126,2628.4,2628.3,0.3806]
[1727257032028,4.53934,2628.4,2628.3,0.3806]
[1727257044843,4.53934,2628.4,2628.3,0.758]
[1727257045030,3.2078,2628.4,2628.3,1.858]
[1727257045227,3.2078,2628.4,2628.3,4.25369314]
[1727257045228,3.58824,2628.4,2628.3,4.25369314]
[1727257045530,3.58824,2628.4,2628.3,3.25561573]
[1727257045737,3.58824,2628.4,2628.3,4.25386633]
[1727257045942,3.58824,2628.4,2628.3,1.858]
[1727257046134,3.2078,2628.4,2628.3,1.858]
[1727257046439,3.58824,2628.4,2628.3,0.758]
[1727257048840,3.2078,2628.4,2628.3,0.758]
[1727257050541,3.58824,2628.4,2628.3,0.758]
[1727257053042,3.58824,2628.4,2628.3,1.7562506]
[1727257053843,4.53934,2628.4,2628.3,1.7562506]
[1727257054043,4.53934,2628.4,2628.3,0.758]
[1727257055845,4.76202197,2628.4,2628.3,0.758]
[1727257062950,14.33528197,2628.4,2627.9,0.9982506]
[1727257063269,14.33528197,2628.4,2627.7,1.1802]
[1727257063270,1.33183,2627.8,2627.7,1.1802]
[1727257063453,1.33183,2627.8,2627.7,0.7825]
[1727257064756,5.13743,2627.8,2627.7,0.3783]
[1727257065058,0.38057,2627.5,2627.3,0.7812]
[1727257066066,3.2078,2627.6,2627.3,0.7812]
[1727257066354,3.58835,2627.6,2627.3,0.7812]
[1727257067556,0.38057,2627.5,2627.3,0.7812]
[1727257073854,3.58837,2627.5,2627.3,0.7812]
[1727257074760,0.38057,2627.5,2627.3,0.7812]
[1727257074955,3.58837,2627.5,2627.3,0.7812]
[1727257076057,0.38057,2627.5,2627.3,0.7812]
[1727257076256,3.58837,2627.5,2627.3,0.7812]
[1727257076461,0.38058,2627.4,2627.3,0.7812]
[1727257077160,3.58838,2627.5,2627.3,0.7812]
[1727257077367,3.2078,2627.5,2627.3,0.7812]
[1727257077664,3.58837,2627.5,2627.3,0.7812]
[1727257079163,3.2078,2627.5,2627.3,1.16179]
[1727257079363,3.58837,2627.5,2627.3,0.7812]
[1727257079868,3.58837,2627.5,2627.3,1.16179]
[1727257080268,0.38058,2627.4,2627.3,0.7812]
[1727257082970,3.2078,2627.8,2627.3,4.5876]
[1727257083272,0.38054,2627.7,2627.6,1.1]
[1727257083965,0.38054,2627.7,2627.6,1.48055]
[1727257084166,3.58833,2627.8,2627.6,1.1]
[1727257084371,3.58833,2627.8,2627.7,0.802]
[1727257085464,0.38059,2627.4,2626.9,0.9982506]
[1727257085665,0.95137,2627.7,2627.2,0.782]
[1727257085666,0.38059,2627.3,2627.2,0.782]
[1727257086871,1.48059,2627.3,2627.2,0.4034]
[1727257087069,0.38065,2626.9,2626.8,0.3786]
[1727257087367,0.38065,2626.9,2626.4,0.9982506]
[1727257087368,1.1,2626.9,2626.6,0.781]
[1727257087672,3.58844,2627.0,2626.6,0.781]
[1727257087969,3.58844,2627.0,2626.7,1.48068]
[1727257096078,0.38065,2626.9,2626.6,0.4003]
[1727257096381,0.75655,2626.9,2626.7,0.38068]
[1727257096775,0.38067,2626.8,2626.6,0.78099]
[1727257097178,0.3759,2626.9,2626.6,0.78099]
[1727257097477,0.75657,2626.9,2626.6,0.4003]
[1727257097674,0.75657,2626.9,2626.7,0.38068]
[1727257098571,0.3759,2626.9,2626.7,0.38068]
[1727257099182,0.75655,2626.9,2626.7,0.38068]
[1727257100085,0.75655,2626.9,2626.6,1.5003]
[1727257100387,0.75655,2626.9,2626.7,0.38067]
[1727257100793,0.75655,2626.9,2626.6,1.5003]
[1727257101086,0.75655,2626.9,2626.7,0.74737]
[1727257101684,0.38067,2626.8,2626.7,0.74737]
[1727257102181,3.58844,2627.0,2626.9,0.38065]
[1727257102584,3.2078,2627.0,2626.9,0.38065]
[1727257102782,0.38064,2627.0,2626.9,0.77675]
[1727257103685,0.3841,2627.2,2626.9,0.3961]
[1727257103890,0.3806,2627.3,2627.2,0.3806]
[1727257104083,0.3806,2627.3,2627.2,1.4806]
[1727257104487,0.3806,2627.3,2627.2,1.1]
[1727257104887,0.38061,2627.2,2627.1,1.48061]
[1727257105187,0.38061,2627.2,2627.1,1.48062]
[1727257107594,0.38061,2627.2,2627.1,1.1]
[1727257108193,0.3806,2627.3,2627.1,1.48062]
[1727257110591,0.38061,2627.2,2627.1,1.48062]
[1727257114299,0.38061,2627.2,2627.1,1.1]
[1727257114891,4.15927,2627.4,2627.1,1.48062]
[1727257115491,0.38061,2627.2,2627.1,1.48062]
[1727257115701,0.38061,2627.2,2627.0,1.12693]
[1727257116005,0.38062,2627.1,2627.0,0.7463]
[1727257116299,0.38062,2627.2,2627.0,1.12694]
[1727257116504,0.78502,2627.2,2627.0,1.12694]
[1727257118298,0.4044,2627.2,2627.0,1.12693]
[1727257118799,0.78501,2627.2,2627.0,1.12693]
[1727257120699,0.38062,2627.1,2627.0,1.12693]
[1727257120899,0.78502,2627.2,2627.0,1.12693]
[1727257121198,0.38062,2627.1,2627.0,0.7463]
[1727257121499,0.38062,2627.1,2627.0,2.1251906]
[1727257121689,0.38062,2627.1,2627.0,1.7445506]
[1727257121897,0.38062,2627.1,2627.0,2.1251906]
[1727257122699,0.78502,2627.2,2627.0,1.12694]
[1727257122889,0.38062,2627.1,2627.0,1.7445506]
[1727257123092,0.38062,2627.1,2627.0,0.7463]
[1727257123308,0.38062,2627.1,2627.0,1.7445506]
[1727257124902,0.38062,2627.1,2627.0,0.7463]
[1727257125201,0.38062,2627.1,2627.0,1.7445506]
[1727257128107,3.2078,2627.4,2627.0,1.7445506]
[1727257128399,0.4032,2627.8,2627.3,2.59372771]
[1727257128602,0.4032,2627.8,2627.6,0.38055]
[1727257128800,0.4032,2627.8,2627.5,1.37797097]
[1727257130605,0.4032,2627.8,2627.6,0.38055]
[1727257131103,0.4032,2627.8,2627.5,1.37797097]
[1727257131312,0.4032,2627.8,2627.6,0.78345]
[1727257131700,0.4032,2627.8,2627.6,0.4029]
[1727257131899,0.4032,2627.8,2627.6,0.78345]
[1727257132100,0.4032,2627.8,2627.7,0.3704]
[1727257135904,0.46634471,2627.8,2627.7,0.3704]
[1727257138112,0.46634657,2627.8,2627.7,0.3704]
[1727257138411,0.4032,2627.8,2627.7,0.3704]
[1727257139205,0.4032,2627.8,2627.6,0.4029]
[1727257140109,3.2078,2627.7,2627.6,0.4029]
[1727257140499,3.27094736,2627.7,2627.6,0.4029]
[1727257141107,3.27094711,2627.7,2627.6,0.4029]
[1727257141413,0.1262942,2627.7,2627.6,0.4029]
[1727257141607,0.06314711,2627.7,2627.6,0.4029]
[1727257142713,0.06314711,2627.7,2627.4,1.18547]
[1727257143011,3.27094711,2627.7,2627.4,1.57377]
[1727257143517,0.06314711,2627.7,2627.4,2.57118097]
[1727257144518,0.06314711,2627.7,2627.4,1.57377]
[1727257144711,0.06314711,2627.7,2627.4,2.57118097]
[1727257145315,0.44368711,2627.7,2627.4,2.57118097]
[1727257146009,0.44368711,2627.7,2627.4,1.57377]
[1727257146212,0.38054,2627.7,2627.4,2.57118097]
[1727257146603,0.38054,2627.7,2627.4,1.57377]
[1727257147107,0.38054,2627.7,2627.4,2.57118097]
[1727257147306,0.38054,2627.7,2627.4,1.57377]
[1727257147515,3.58834,2627.7,2627.4,1.57377]
[1727257147706,0.38055,2627.6,2627.4,2.57118097]
[1727257147908,4.15915,2627.7,2627.4,1.1932]
[1727257148113,0.75707,2627.5,2627.4,1.1932]
[1727257148317,0.3765,2627.5,2627.4,1.1932]
[1727257148616,3.2078,2627.7,2627.4,1.1932]
[1727257148825,0.75706,2627.6,2627.4,1.1932]
[1727257151315,0.38059,2627.4,2627.1,0.38062]
[1727257151513,0.38059,2627.4,2627.1,1.177]
[1727257151514,3.2078,2627.4,2627.1,1.177]
[1727257151707,0.7469,2627.3,2627.1,1.177]